[Event "44th Chess Olympiad Open 2022"]
[Site "Chennai"]
[Date "2022.07.30"]
[Round "2.31"]
[White "Westerberg, Jonathan"]
[Black "Amdouni, Zoubaier"]
[Result "1/2-1/2"]
[WhiteElo "2476"]
[BlackElo "2224"]
[Annotator "TA"]
[PlyCount "60"]
[EventDate "2022.??.??"]
[TimeControl "60"]

{[%evp 9,60,23,32,22,42,29,29,10,8,8,13,6,17,20,34,27,26,27,29,-32,-19,-20,10,
0,0,4,28,38,26,0,0,0,0,0,0,0,0,0,0,0,0,0,0,0,0,0,0,0,0,0,0,0,0]} 1. e4 {
[%emt 0:00:21]} c5 {[%emt 0:00:12]} 2. Nc3 {[%emt 0:00:48]} Nc6 {[%emt 0:00:04]
} 3. Bb5 {[%emt 0:01:32]} g6 {[%emt 0:09:02]} 4. Bxc6 {[%emt 0:01:32]} dxc6 {
[%emt 0:00:04]} 5. d3 {[%emt 0:02:11]} Nf6 {[%emt 0:01:14]} 6. f4 {[%emt 0:00:
00] B23: Closed Sicilian: Lines without g3.} Bg7 {[%emt 0:00:40][%cal Yc5c4]}
7. Nf3 {[%emt 0:00:19]} c4 {[%emt 0:02:15]} 8. dxc4 {[%emt 0:05:06] White
wants to play Qxd8+. White has an edge.} Qxd1+ {[%emt 0:00:15]} 9. Kxd1 {
[%emt 0:00:10] [#]} Ng4 $146 {[%emt 0:00:52]} ({Predecessor:} 9... Be6 10. e5
Ng4 11. Ke1 Bxc4 12. b3 Be6 13. h3 Nh6 14. Bb2 O-O-O 15. g4 Bd5 {1-0 (52)
Shuvalova,P (2493)-Shtyka,S (2154) Chess.com INT 2022}) 10. Ke2 {[%emt 0:03:37]
Against Nf2} Bxc3 {[%emt 0:03:58]} 11. bxc3 {[%emt 0:00:06]} c5 {[%emt 0:00:04]
} 12. a4 {[%emt 0:08:22]} b6 {[%emt 0:05:26]} 13. a5 {[%emt 0:00:22] [#] And
now axb6 would win.} Ba6 {[%emt 0:01:56]} 14. axb6 {[%emt 0:01:01]} (14. Nd2
$11) 14... axb6 $15 {[%emt 0:00:15]} 15. Ra4 {[%emt 0:03:43]} Nf6 {[%emt 0:00:
00]} (15... O-O $5 {[%cal Ra6b5]}) 16. e5 {[%emt 0:07:41]} Ne4 {[%emt 0:01:39]}
17. Ke3 {[%emt 0:02:15] Strongly threatening Rxa6.} Bb7 {[%emt 0:00:48][%cal
Ya6b7,Yb7a8,Ya8c6,Yc6d7,Yd7e6]} 18. Rxa8+ {[%emt 0:00:05]} Bxa8 {[%emt 0:00:00]
} 19. Bb2 {[%emt 0:00:18]} (19. Bd2 $5) 19... f5 {[%emt 0:03:26] The position
is equal.} 20. Ra1 {[%emt 0:05:55]} Kf7 {[%emt 0:05:21]} 21. Ne1 {[%emt 0:04:
52]} Bc6 {[%emt 0:02:11]} 22. Ra6 {[%emt 0:00:46]} Rb8 {[%emt 0:00:00]} 23. Nd3
{[%emt 0:01:13]} Bd7 {[%emt 0:01:54]} 24. g4 {[%emt 0:03:20]} Be6 {[%emt 0:05:
43]} 25. Ra4 {[%emt 0:02:30]} Rd8 {[%emt 0:02:41]} 26. Ra6 {[%emt 0:02:46]} Rb8
{[%emt 0:00:25]} 27. Ra4 {[%emt 0:00:20]} Rd8 {[%emt 0:00:00]} 28. Ra6 {
[%emt 0:00:12]} Rb8 {[%emt 0:00:03]} 29. Ra4 {[%emt 0:00:13]} Rd8 {[%emt 0:00:
00]} 30. Ra6 {[%emt 0:00:36]} Rb8 {[%emt 0:00:00] Weighted Error Value:
White=0.08 (flawless) /Black=0.05 (flawless)} 1/2-1/2

[Event "44th Chess Olympiad Open 2022"]
[Site "Chennai"]
[Date "2022.07.30"]
[Round "2.31"]
[White "Boudriga, Mohamed Ali"]
[Black "Blomqvist, Erik"]
[Result "0-1"]
[WhiteElo "2308"]
[BlackElo "2521"]
[Annotator "TA"]
[PlyCount "40"]
[EventDate "2022.??.??"]
[TimeControl "60"]

{[%evp 9,40,14,11,0,22,-10,-9,-2,-4,-83,-84,-215,-223,-212,-229,-304,-324,-448,
-447,-496,-507,-795,-750,-802,-798,-967,-951,-29975,-29976,-29976,-29973,
-29993,-29994]} 1. d4 {[%emt 0:01:19]} Nf6 {[%emt 0:00:08]} 2. Nf3 {[%emt 0:00:
00]} d5 {[%emt 0:00:08]} 3. g3 {[%emt 0:00:07]} c5 {[%emt 0:02:32]} 4. Bg2 {
[%emt 0:00:10]} cxd4 {[%emt 0:00:29]} 5. O-O {[%emt 0:00:08]} h6 {[%emt 0:00:
00]} 6. b3 {[%emt 0:00:05] D02:1 d4 d5 2 Nf3 sidelines, including 2...Nf6 3 g3
and 2...Nf6 3 Bf4.} h5 {[%emt 0:01:37][%cal Yh5h4]} 7. Bf4 {[%emt 0:15:21]} h4
{[%emt 0:05:19]} 8. Nxh4 {[%emt 0:07:19] The position is equal.} Nc6 {[%emt 0:
01:56]} 9. Nf3 {[%emt 0:00:07] [#]} (9. c3 $11) 9... Ng4 $146 {[%emt 0:00:00]
[%cal Yf6g4,Yg4h2,Yh2g4]} ({Predecessor:} 9... Rh5 10. h4 e5 11. Bg5 Be7 12. c3
dxc3 13. Nxc3 d4 14. Na4 e4 15. Nd2 e3 16. Bxf6 Bxf6 17. fxe3 {½-½ (44) Lin,
Y (2360)-Plazuelo Pascual,J (2464) Lorca 2021}) 10. Nxd4 {[%emt 0:06:23]} (10.
Bg5 $17 {was necessary.}) 10... e5 $19 {[%emt 0:02:11]} ({Weaker is} 10... Rxh2
11. f3 e5 12. fxg4 $14) 11. Nxc6 {[%emt 0:00:00]} bxc6 {[%emt 0:00:09]} 12. Bc1
{[%emt 0:09:13]} Nxh2 {[%emt 0:07:26]} ({Stronger than} 12... Rxh2 13. Bf3 Rh8
14. Nc3 $19) 13. Re1 {[%emt 0:04:32]} Bc5 {[%emt 0:00:00] [#] Strongly
threatening ...Qf6.} 14. b4 {[%emt 0:28:16]} Bb6 {[%emt 0:00:00] And now ...
Qf6 would win.} 15. Qd3 {[%emt 0:08:02]} (15. c4 $142 Bd4 16. Qb3) 15... Ng4 {
[%emt 0:09:11]} 16. e3 {[%emt 0:04:34]} Qf6 {[%emt 0:03:26][%csl Gg4][%cal
Rf6f2]} 17. Re2 {[%emt 0:04:01]} Bf5 {[%emt 0:08:59]} 18. Qc3 {[%emt 0:08:57]}
Be4 {[%emt 0:00:12] Black mates.} 19. f3 {[%emt 0:00:46]} Bxf3 {[%emt 0:01:20]}
20. Bxf3 {[%emt 0:00:31]} Qxf3 {[%emt 0:00:15] White got outplayed after the
opening. Weighted Error Value: White=1.09/Black=0.01 (flawless)} 0-1

[Event "44th Chess Olympiad Open 2022"]
[Site "Chennai"]
[Date "2022.07.30"]
[Round "2.31"]
[White "Meddeb, Anis"]
[Black "Berg, Emanuel"]
[Result "1-0"]
[WhiteElo "2121"]
[BlackElo "2533"]
[Annotator "TA"]
[PlyCount "74"]
[EventDate "2022.??.??"]
[TimeControl "60"]

{[%evp 16,74,39,20,27,-10,16,-44,-46,-30,16,-43,0,0,74,61,97,0,62,-10,-16,-16,
-16,-18,-22,-17,-28,-90,-35,-46,-38,-81,609,588,667,667,775,716,653,457,468,
458,450,467,433,422,562,550,706,700,780,772,3633,1647,5389,5385,5916,5389,4910,
4902,2300]} 1. e4 {[%emt 0:00:04]} c5 {[%emt 0:00:15]} 2. Nf3 {[%emt 0:00:09]}
e6 {[%emt 0:00:14]} 3. d4 {[%emt 0:00:06]} cxd4 {[%emt 0:00:07]} 4. Nxd4 {
[%emt 0:00:05]} a6 {[%emt 0:00:14]} 5. Nc3 {[%emt 0:01:13]} Qc7 {[%emt 0:02:04]
} 6. Be2 {[%emt 0:01:50]} b5 {[%emt 0:25:36][%cal Yb7b5,Yb5b4]} 7. O-O {
[%emt 0:04:24]} Bb7 {[%emt 0:01:21]} 8. Bf3 {[%emt 0:21:21]} d6 {[%emt 0:00:00]
} 9. Re1 {[%emt 0:03:14] 9.Re1 scores better than 9.a4.} Nd7 {[%emt 0:05:11] 
[#] B43: Sicilian: Kan Variation: 5 Nc3.} 10. Bg4 $146 {[%emt 0:11:30][%cal
Yg4e6]} ({Predecessor:} 10. g3 Ngf6 11. Bg2 Be7 12. a3 O-O 13. g4 Nb6 14. g5
Nfd7 15. f4 Rfe8 16. f5 Bf8 17. fxe6 fxe6 {1-0 (36) Onischuk,V (2612)-Hou,Y 
(2671) Bastia 2015}) 10... b4 {[%emt 0:05:49]} 11. Nd5 {[%emt 0:21:51]} exd5
$15 {[%emt 0:00:55] Black is slightly better.} 12. exd5+ {[%emt 0:06:56]} Ne7 {
[%emt 0:09:03]} (12... Be7 $1 {deserves consideration.} 13. Nf5 Ne5) 13. Nc6 {
[%emt 0:09:08]} (13. Bg5 h5 14. Bxh5 Ne5 $15) ({Better is} 13. c4 $11) 13...
Nf6 {[%emt 0:04:39][%cal Yf6d5]} 14. Bf3 {[%emt 0:09:10]} Bxc6 {[%emt 0:07:22]}
(14... Kd7 $11 {keeps the balance.}) 15. dxc6 $16 {[%emt 0:00:03] And now c4
would win.} d5 {[%emt 0:00:12]} 16. Bg5 {[%emt 0:02:05] White is more active.}
(16. a3 $16) 16... O-O-O {[%emt 0:09:55]} (16... Ne4 $1 $11 17. Bxe4 dxe4 18.
Rxe4 h6) 17. a3 {[%emt 0:01:51]} (17. c4 $1 $14) 17... Nxc6 $11 {[%emt 0:04:58]
aiming for ...bxa3.} 18. axb4 {[%emt 0:00:04]} Bxb4 {[%emt 0:00:29]} 19. c3 {
[%emt 0:00:07]} Bc5 {[%emt 0:00:26]} 20. Rxa6 {[%emt 0:00:19]} Rhe8 {[%emt 0:
00:00]} 21. Rf1 {[%emt 0:01:17] [#]} (21. Rxe8 $11 {remains equal.} Rxe8 22.
Bxf6 gxf6 23. g3 (23. Bxd5 Nb8 $15)) 21... Kb7 {[%emt 0:03:45]} (21... Re6 $1
$17 22. Qa4 Nb8) 22. Qa4 $15 {[%emt 0:00:48]} Bb6 {[%emt 0:01:03]} 23. Ra1 {
[%emt 0:01:02] Qb5 is the strong threat.} Ne4 $2 {[%emt 0:02:36] [#] This move
loses the game for Black.} (23... Kc8 $2 24. Qb5 Na7 25. Qxb6 Qxb6 26. Rxb6 $18
) (23... Qd6 $17 24. Kh1 Qc5) 24. Be3 $1 $18 {[%emt 0:02:54] White is clearly
winning.} (24. Bxd8 Qxd8 25. Qb5 (25. Bxe4 dxe4 26. Qc4 e3 $11) 25... Nxf2 $14)
24... Bxe3 {[%emt 0:00:47]} 25. fxe3 {[%emt 0:00:02] Intending Qb5+ and mate.}
Rd6 {[%emt 0:00:38]} 26. Qb5+ {[%emt 0:00:11]} Kc8 {[%emt 0:00:00]} 27. Ra8+ {
[%emt 0:00:28]} Kd7 {[%emt 0:00:01] Hoping for ...Rb8.} 28. R8a7 $1 {[%emt 0:
00:13]} Rb8 {[%emt 0:00:53]} 29. Rxc7+ {[%emt 0:00:15]} Kxc7 {[%emt 0:00:01]}
30. Qe2 {[%emt 0:00:34]} f5 {[%emt 0:00:41]} 31. Bxe4 {[%emt 0:00:00]} dxe4 {
[%emt 0:00:25]} 32. b4 {[%emt 0:00:54]} Rd3 {[%emt 0:00:24]} 33. Qa2 {[%emt 0:
01:33]} g6 {[%emt 0:01:33]} 34. Qf7+ {[%emt 0:00:15]} (34. Qc4 $142 Kd7 35. b5)
34... Rd7 {[%emt 0:00:21]} 35. Qc4 {[%emt 0:00:14]} Kb7 {[%emt 0:00:37]} 36.
Qb5+ {[%emt 0:00:29]} Kc7 {[%emt 0:00:05]} 37. Qc5 {[%emt 0:00:12]} Rb6 {
[%emt 0:00:00] Weighted Error Value: White=0.35/Black=0.64} 1-0

[Event "44th Chess Olympiad Open 2022"]
[Site "Chennai"]
[Date "2022.07.30"]
[Round "2.32"]
[White "Albornoz Cabrera, Carlos Daniel"]
[Black "Balogun, Oluwafemi"]
[Result "1-0"]
[WhiteElo "2566"]
[BlackElo "2274"]
[Annotator "ChessBase"]
[PlyCount "61"]
[EventDate "2022.??.??"]
[TimeControl "60"]

1. e4 {[%emt 0:00:06]} g6 {[%emt 0:00:37]} 2. d4 {[%emt 0:00:05]} Bg7 {[%emt 0:
00:00]} 3. Nc3 {[%emt 0:00:09]} c6 {[%emt 0:01:08]} 4. Nf3 {[%emt 0:01:38]} d6
{[%emt 0:03:12]} 5. Be3 {[%emt 0:00:10]} Nf6 {[%emt 0:00:51]} 6. Qd2 {[%emt 0:
00:00]} Bg4 {[%emt 0:23:29]} 7. h4 {[%emt 0:08:23]} Bxf3 {[%emt 0:00:30]} 8.
gxf3 {[%emt 0:00:30]} Nbd7 {[%emt 0:07:30]} 9. f4 {[%emt 0:07:50]} Ng4 {
[%emt 0:00:39]} 10. h5 {[%emt 0:05:18]} Rg8 {[%emt 0:06:13]} 11. hxg6 {[%emt 0:
00:00]} hxg6 {[%emt 0:00:07]} 12. Bh3 {[%emt 0:03:59]} Nxe3 {[%emt 0:05:15]}
13. fxe3 {[%emt 0:00:09]} e6 {[%emt 0:01:42]} 14. O-O-O {[%emt 0:04:17]} Qa5 {
[%emt 0:05:00]} 15. f5 {[%emt 0:09:48]} exf5 {[%emt 0:11:45]} 16. exf5 {
[%emt 0:00:05]} O-O-O {[%emt 0:00:31]} 17. Rdg1 {[%emt 0:08:54]} Bf6 {[%emt 0:
00:00]} 18. fxg6 {[%emt 0:08:56]} fxg6 {[%emt 0:02:23]} 19. Be6 {[%emt 0:03:55]
} Rge8 {[%emt 0:02:03]} 20. Bf7 {[%emt 0:01:50]} Re7 {[%emt 0:00:00]} 21. Bxg6
{[%emt 0:00:07]} Nb6 {[%emt 0:03:18]} 22. Rh5 {[%emt 0:03:39]} d5 {[%emt 0:00:
00]} 23. Qf2 {[%emt 0:02:38]} Nd7 {[%emt 0:01:06]} 24. Bf5 {[%emt 0:04:06]} Rf8
{[%emt 0:00:12]} 25. e4 {[%emt 0:05:21]} Kb8 {[%emt 0:00:50]} 26. e5 {[%emt 0:
00:00]} Bg7 {[%emt 0:00:31]} 27. Rh7 {[%emt 0:01:42]} Ref7 {[%emt 0:00:27]} 28.
Rg5 {[%emt 0:01:13]} Bh8 {[%emt 0:00:32]} 29. Rxf7 {[%emt 0:00:26]} Rxf7 {
[%emt 0:00:12]} 30. e6 {[%emt 0:04:27]} Qd8 {[%emt 0:00:48]} 31. Qg3+ {[%emt 0:
00:00]} 1-0

[Event "44th Chess Olympiad Open 2022"]
[Site "Chennai"]
[Date "2022.07.30"]
[Round "2.32"]
[White "Almeida Quintana, Omar"]
[Black "Adebayo, Adegboyega"]
[Result "1-0"]
[WhiteElo "2523"]
[BlackElo "2313"]
[Annotator "TA"]
[PlyCount "77"]
[EventDate "2022.??.??"]
[TimeControl "60"]

{[%evp 21,77,2,42,39,36,32,53,39,37,37,37,37,37,35,25,12,18,-5,-6,-25,-29,-32,
-17,-43,-9,-38,-38,-37,-44,-35,-18,-29,-18,-22,-16,-25,-23,-26,-6,-47,-16,-29,
-8,-19,16,29,36,0,0,0,0,4,195,196,237,210,830,793]} 1. d4 {[%emt 0:00:06]} e6 {
[%emt 0:00:17]} 2. c4 {[%emt 0:00:59]} d5 {[%emt 0:00:19]} 3. Nf3 {[%emt 0:00:
00]} c6 {[%emt 0:00:47]} 4. Qc2 {[%emt 0:00:36]} Nf6 {[%emt 0:02:00]} 5. Bg5 {
[%emt 0:02:16]} Nbd7 {[%emt 0:01:48][%cal Yb8d7,Yd7f8,Yf8e6]} 6. cxd5 {[%emt 0:
01:15]} exd5 {[%emt 0:00:46]} 7. Nc3 {[%emt 0:00:11]} Be7 {[%emt 0:00:00]} 8.
e3 {[%emt 0:00:44]} Nf8 {[%emt 0:04:15]} 9. h3 {[%emt 0:03:38]} Ne6 {[%emt 0:
04:26]} 10. Bh4 {[%emt 0:02:17]} g6 {[%emt 0:07:59]} 11. Bd3 {[%emt 0:00:00]}
Ng7 {[%emt 0:05:59]} 12. g4 {[%emt 0:06:04] D36: Queen's Gambit Declined:
Exchange Variation: Main line (5 Bg5 c6 6 Qc2).} Be6 {[%emt 0:03:33]} 13. O-O-O
{[%emt 0:02:11] [#]} Rc8 $146 {[%emt 0:06:01]} ({Predecessor:} 13... Nd7 14.
Bg3 Qa5 15. Ne5 Nxe5 16. Bxe5 f6 17. Bg3 O-O 18. f4 f5 19. h4 c5 {1-0 (37)
Romanov,E (2600)-Fomichenko,E (2462) La Fere 2010}) 14. Kb1 {[%emt 0:00:00]
White is slightly better.} Ne4 {[%emt 0:03:01]} 15. Bxe4 {[%emt 0:06:35] [#]
Threatens to win with Bxe7.} (15. Nxe4 $2 dxe4 16. Bxe7 exd3 17. Qxc6+ bxc6 $19
) 15... Bxh4 {[%emt 0:01:33]} 16. Bd3 {[%emt 0:00:55]} Be7 {[%emt 0:03:11]
[%cal Yh4e7,Ye7d6,Yd6f4]} 17. Ne5 {[%emt 0:05:18]} f6 {[%emt 0:08:41]} 18. Nf3
{[%emt 0:02:11]} Bd6 {[%emt 0:03:25]} 19. e4 {[%emt 0:11:24]} O-O {[%emt 0:06:
25]} 20. exd5 {[%emt 0:02:19]} cxd5 {[%emt 0:02:20]} 21. Qb3 {[%emt 0:00:22]
[%csl Yb7,Yd5]} Qa5 {[%emt 0:05:49]} 22. Nb5 {[%emt 0:07:59][%cal Yc3b5,Yb5a3,
Ya3c2,Yc2e3,Ye3g4,Yg4f6]} ({But not} 22. Qxb7 $2 Rxc3 23. bxc3 Rb8 24. Qxb8+
Bxb8 $19) 22... Bf4 {[%emt 0:06:39]} 23. Rhe1 {[%emt 0:01:05]} Rfd8 {[%emt 0:
01:50]} 24. Qa3 {[%emt 0:13:02]} Qxa3 {[%emt 0:00:00]} 25. Nxa3 {[%emt 0:02:39]
} a6 {[%emt 0:01:26]} 26. Nc2 {[%emt 0:00:34]} Bf7 {[%emt 0:02:37]} 27. Ne3 {
[%emt 0:03:37]} Ne6 {[%emt 0:03:54]} 28. h4 {[%emt 0:02:48]} Bc7 {[%emt 0:01:
38]} (28... b5 {feels hotter.} 29. Rh1 Kg7 30. h5 Bc7) 29. Bc2 {[%emt 0:00:20]}
Nf4 {[%emt 0:01:26]} 30. Bb3 {[%emt 0:03:27]} Re8 {[%emt 0:01:53]} 31. g5 {
[%emt 0:01:43]} Ba5 {[%emt 0:02:57]} 32. Ng4 {[%emt 0:04:35]} fxg5 {[%emt 0:04:
54]} 33. Nf6+ {[%emt 0:00:46] Pair of Knights!} Kf8 {[%emt 0:00:48]} 34. Nxe8 {
[%emt 0:05:39]} Bxe8 {[%emt 0:00:20]} 35. Rg1 {[%emt 0:00:35]} gxh4 {[%emt 0:
02:14]} 36. Rg4 {[%emt 0:01:16]} Nh3 {[%emt 0:00:00] [#]} (36... Bc7 $1 $11 {
and Black is okay.}) 37. Rxh4 $18 {[%emt 0:00:00]} Nxf2 {[%emt 0:00:00]} 38.
Rf1 {[%emt 0:00:30]} Ne4 $2 {[%emt 0:00:00]} (38... g5) 39. Ng5+ {[%emt 0:00:
41] Weighted Error Value: White=0.08 (flawless) /Black=0.23 (precise)} ({Not} 
39. Ne5+ Kg7 40. Rfh1 Nd2+ 41. Ka1 Nxb3+ 42. axb3 h5 $17) 1-0

[Event "44th Chess Olympiad Open 2022"]
[Site "Chennai"]
[Date "2022.07.30"]
[Round "2.32"]
[White "Kigigha, Bomo"]
[Black "Quesada Perez, Luis Ernesto"]
[Result "0-1"]
[WhiteElo "2251"]
[BlackElo "2549"]
[Annotator "ChessBase"]
[PlyCount "60"]
[EventDate "2022.??.??"]
[TimeControl "60"]

1. Nf3 {[%emt 0:00:09]} d5 {[%emt 0:00:14]} 2. c4 {[%emt 0:00:10]} d4 {[%emt 0:
00:00]} 3. b4 {[%emt 0:01:06]} f6 {[%emt 0:00:06]} 4. e3 {[%emt 0:06:24]} e5 {
[%emt 0:00:29]} 5. Nxe5 {[%emt 0:05:43]} fxe5 {[%emt 0:00:03]} 6. Qh5+ {
[%emt 0:00:06]} Ke7 {[%emt 0:02:22]} 7. b5 {[%emt 0:12:56]} c5 {[%emt 0:04:02]}
8. Qxe5+ {[%emt 0:02:57]} Kf7 {[%emt 0:00:07]} 9. Bb2 {[%emt 0:01:36]} Nf6 {
[%emt 0:00:14]} 10. Qf4 {[%emt 0:12:12]} Bd6 {[%emt 0:18:35]} 11. Qh4 {[%emt 0:
00:00]} Re8 {[%emt 0:08:49]} 12. Be2 {[%emt 0:21:46]} Nbd7 {[%emt 0:07:16]} 13.
O-O {[%emt 0:04:44]} Ne5 {[%emt 0:04:57]} 14. exd4 {[%emt 0:06:58]} Ng6 {
[%emt 0:01:55]} 15. Bh5 {[%emt 0:00:07]} Re4 {[%emt 0:00:27]} 16. f4 {[%emt 0:
00:00]} Bg4 {[%emt 0:03:02]} 17. Bxg6+ {[%emt 0:03:30]} hxg6 {[%emt 0:00:26]}
18. Nc3 {[%emt 0:00:24]} Rxd4 {[%emt 0:03:42]} 19. Nd5 {[%emt 0:00:57]} Nxd5 {
[%emt 0:00:11]} 20. Qxd8 {[%emt 0:02:09]} Rxd8 {[%emt 0:00:10]} 21. Bxd4 {
[%emt 0:00:05]} cxd4 {[%emt 0:06:34]} 22. cxd5 {[%emt 0:00:05]} Be2 {[%emt 0:
00:00]} 23. Rfb1 {[%emt 0:01:15]} d3 {[%emt 0:01:21]} 24. Rc1 {[%emt 0:00:26]}
Bb4 {[%emt 0:05:07]} 25. Rc7+ {[%emt 0:01:02]} Kg8 {[%emt 0:00:41]} 26. Rxb7 {
[%emt 0:02:25]} Bxd2 {[%emt 0:00:11]} 27. Re7 {[%emt 0:00:07]} Rxd5 {[%emt 0:
00:00]} 28. Rb1 {[%emt 0:00:34]} Bxf4 {[%emt 0:01:06]} 29. Kf2 {[%emt 0:00:28]}
Rf5 {[%emt 0:04:35]} 30. Ke1 {[%emt 0:05:02]} Be3 {[%emt 0:00:28]} 0-1

[Event "44th Chess Olympiad Open 2022"]
[Site "Chennai"]
[Date "2022.07.30"]
[Round "2.32"]
[White "Okeke Issac"]
[Black "Quesada Perez, Yasser"]
[Result "0-1"]
[WhiteElo "2204"]
[BlackElo "2568"]
[Annotator "ChessBase"]
[PlyCount "74"]
[EventDate "2022.??.??"]
[TimeControl "60"]

1. e4 {[%emt 0:00:05]} c5 {[%emt 0:00:06]} 2. Nf3 {[%emt 0:00:09]} Nc6 {
[%emt 0:00:05]} 3. d4 {[%emt 0:00:07]} cxd4 {[%emt 0:00:07]} 4. Nxd4 {[%emt 0:
00:00]} Qb6 {[%emt 0:00:07]} 5. Nb3 {[%emt 0:00:20]} Nf6 {[%emt 0:00:05]} 6.
Nc3 {[%emt 0:00:06]} e6 {[%emt 0:00:05]} 7. Qe2 {[%emt 0:00:23]} Bb4 {[%emt 0:
00:00]} 8. Bd2 {[%emt 0:00:37]} O-O {[%emt 0:00:13]} 9. a3 {[%emt 0:00:09]} Be7
{[%emt 0:00:12]} 10. O-O-O {[%emt 0:00:10]} d5 {[%emt 0:00:16]} 11. exd5 {
[%emt 0:00:18]} Nxd5 {[%emt 0:02:51]} 12. Nxd5 {[%emt 0:02:15]} exd5 {[%emt 0:
00:00]} 13. Be3 {[%emt 0:00:09]} Qc7 {[%emt 0:01:07]} 14. f4 {[%emt 0:09:43]}
Re8 {[%emt 0:04:24]} 15. Qf3 {[%emt 0:12:25]} Bd6 {[%emt 0:09:19]} 16. Kb1 {
[%emt 0:01:54]} Qe7 {[%emt 0:03:09]} 17. Bc1 {[%emt 0:07:47]} a5 {[%emt 0:00:
00]} 18. Bb5 {[%emt 0:20:51]} Qc7 {[%emt 0:09:41]} 19. Rxd5 {[%emt 0:05:03]}
Be6 {[%emt 0:00:09]} 20. Rdd1 {[%emt 0:10:38]} a4 {[%emt 0:05:15]} 21. Nd4 {
[%emt 0:05:04]} Nxd4 {[%emt 0:00:13]} 22. Rxd4 {[%emt 0:00:07]} Qb6 {[%emt 0:
00:00]} 23. Qd3 {[%emt 0:06:44]} Bc5 {[%emt 0:03:36]} 24. Bxe8 {[%emt 0:11:44]}
Bxd4 {[%emt 0:00:08]} 25. Bb5 {[%emt 0:10:19]} g6 {[%emt 0:10:45]} 26. Rd1 {
[%emt 0:00:00]} Bf6 {[%emt 0:00:32]} 27. Be3 {[%emt 0:00:00]} Qa5 {[%emt 0:00:
00]} 28. Qe2 {[%emt 0:00:00]} Qc7 {[%emt 0:02:20]} 29. g4 {[%emt 0:00:00]} Ra5
{[%emt 0:03:37]} 30. Bd2 {[%emt 0:00:00]} Ra8 {[%emt 0:02:02]} 31. Be3 {
[%emt 0:00:00]} Rc8 {[%emt 0:03:58]} 32. Bxa4 {[%emt 0:00:00]} Bxb2 {[%emt 0:
00:00]} 33. Kxb2 {[%emt 0:00:00]} Qc3+ {[%emt 0:00:02]} 34. Kc1 {[%emt 0:00:00]
} Qxa3+ {[%emt 0:00:16]} 35. Kd2 {[%emt 0:00:12]} Qxa4 {[%emt 0:01:45]} 36. Rc1
{[%emt 0:00:35]} Qe4 {[%emt 0:01:10]} 37. h3 {[%emt 0:00:30]} Rd8+ {[%emt 0:00:
00]} 0-1

[Event "44th Chess Olympiad Open 2022"]
[Site "Chennai"]
[Date "2022.07.30"]
[Round "2.33"]
[White "Dragnev, Valentin"]
[Black "Berend, Elvira"]
[Result "1/2-1/2"]
[WhiteElo "2557"]
[BlackElo "2333"]
[Annotator "ChessBase"]
[PlyCount "84"]
[EventDate "2022.??.??"]
[TimeControl "60"]

1. d4 {[%emt 0:00:04]} Nf6 {[%emt 0:00:06]} 2. c4 {[%emt 0:00:04]} e6 {[%emt 0:
00:00]} 3. Nf3 {[%emt 0:00:06]} d5 {[%emt 0:00:08]} 4. Nc3 {[%emt 0:00:34]} c5
{[%emt 0:00:26]} 5. e3 {[%emt 0:02:30]} Nc6 {[%emt 0:00:24]} 6. a3 {[%emt 0:00:
00]} a6 {[%emt 0:00:53]} 7. dxc5 {[%emt 0:05:57]} Bxc5 {[%emt 0:01:22]} 8. b4 {
[%emt 0:00:07]} Ba7 {[%emt 0:00:09]} 9. Bb2 {[%emt 0:01:41]} O-O {[%emt 0:00:
00]} 10. Qc2 {[%emt 0:03:13]} Qe7 {[%emt 0:05:30]} 11. Rd1 {[%emt 0:11:45]} Rd8
{[%emt 0:08:00]} 12. Be2 {[%emt 0:00:49]} dxc4 {[%emt 0:03:49]} 13. Rxd8+ {
[%emt 0:07:05]} Nxd8 {[%emt 0:00:26]} 14. Ne4 {[%emt 0:11:14]} Nxe4 {[%emt 0:
00:00]} 15. Qxe4 {[%emt 0:00:06]} Bd7 {[%emt 0:00:22]} 16. Bxc4 {[%emt 0:02:08]
} Rc8 {[%emt 0:04:08]} 17. Ne5 {[%emt 0:03:59]} Bb5 {[%emt 0:01:14]} 18. Bxb5 {
[%emt 0:02:53]} axb5 {[%emt 0:00:11]} 19. Qd3 {[%emt 0:03:00]} f6 {[%emt 0:00:
00]} 20. Nf3 {[%emt 0:01:46]} Nf7 {[%emt 0:02:02]} 21. O-O {[%emt 0:01:56]} Nd6
{[%emt 0:01:48]} 22. Bd4 {[%emt 0:03:13]} b6 {[%emt 0:02:00]} 23. e4 {[%emt 0:
00:00]} e5 {[%emt 0:02:52]} 24. Be3 {[%emt 0:00:35]} Qe6 {[%emt 0:01:19]} 25.
h3 {[%emt 0:07:28]} Nc4 {[%emt 0:05:01]} 26. Nh4 {[%emt 0:01:28]} g6 {[%emt 0:
00:00]} 27. Rd1 {[%emt 0:04:56]} Bb8 {[%emt 0:01:37]} 28. Qd7 {[%emt 0:10:17]}
Qxd7 {[%emt 0:00:10]} 29. Rxd7 {[%emt 0:00:01]} Bd6 {[%emt 0:00:32]} 30. Bxb6 {
[%emt 0:01:45]} Bf8 {[%emt 0:00:15]} 31. Bd8 {[%emt 0:02:15]} Bg7 {[%emt 0:00:
00]} 32. Be7 {[%emt 0:02:16]} Nxa3 {[%emt 0:00:16]} 33. Bc5 {[%emt 0:00:56]}
Bf8 {[%emt 0:00:56]} 34. Bxf8 {[%emt 0:01:34]} Rxf8 {[%emt 0:00:09]} 35. Ra7 {
[%emt 0:00:25]} Nc2 {[%emt 0:01:30]} 36. Rb7 {[%emt 0:00:26]} Nxb4 {[%emt 0:00:
00]} 37. Rxb5 {[%emt 0:00:05]} Nc2 {[%emt 0:01:53]} 38. Nf3 {[%emt 0:00:23]}
Rd8 {[%emt 0:00:15]} 39. Rb6 {[%emt 0:00:25]} Kg7 {[%emt 0:00:50]} 40. Rb7+ {
[%emt 0:00:11]} Kg8 {[%emt 0:00:10]} 41. Rb6 {[%emt 0:30:17]} Kg7 {[%emt 0:00:
00]} 42. Rb7+ {[%emt 0:00:05]} Kg8 {[%emt 0:00:05]} 1/2-1/2